bitfinex/quotes_ETHUSD_20241103
["timestamp","ask_amount","ask_price","bid_price","bid_amount"]
[1730602989530,4.11573,2429.7,2429.6,0.0601682]
[1730602989733,3.25737159,2429.7,2429.6,0.0601682]
[1730602991397,6.25737159,2429.7,2429.6,0.0601682]
[1730602992342,13.03672139,2429.7,2429.6,0.0601682]
[1730602992745,13.03672139,2429.7,2429.6,8.2e-06]
[1730602992746,14.62282139,2429.7,2429.6,8.2e-06]
[1730602993168,13.92298268,2429.7,2429.6,8.2e-06]
[1730602993645,14.54207139,2429.7,2429.6,8.2e-06]
[1730602994150,9.55207139,2429.7,2429.6,8.2e-06]
[1730602994357,3.25737159,2429.7,2429.6,8.2e-06]
[1730602995113,6.52807139,2429.7,2429.6,8.2e-06]
[1730602995613,17.75967139,2429.7,2429.6,8.2e-06]
[1730602995911,16.08507159,2429.7,2429.6,8.2e-06]
[1730602996510,17.76967139,2429.7,2429.6,8.2e-06]
[1730602997145,16.08507159,2429.7,2429.6,8.2e-06]
[1730602997713,17.76967139,2429.7,2429.6,8.2e-06]
[1730602998027,17.76967139,2429.7,2429.0,9.99848796]
[1730602998028,9.12675,2429.1,2429.0,9.99848796]
[1730602998216,25.58624867,2429.1,2429.0,9.99848796]
[1730602999286,16.94445,2429.1,2429.0,9.99848796]
[1730602999488,16.93445,2429.1,2429.0,9.99848796]
[1730602999695,26.21533738,2429.1,2429.0,1.34039186]
[1730602999987,25.59624867,2429.1,2429.0,1.34039186]
[1730603000181,20.59624867,2429.1,2429.0,1.34039186]
[1730603000385,20.58624867,2429.1,2429.0,1.34039186]
[1730603000585,20.59624867,2429.1,2429.0,1.34039186]
[1730603000816,20.59624867,2429.1,2428.6,1.8e-07]
[1730603000817,8.71352,2428.7,2428.6,1.8e-07]
[1730603001115,8.71352,2428.7,2426.4,0.090142]
[1730603001116,12.13963,2427.4,2427.3,1e-05]
[1730603001246,38.86436024,2427.4,2427.3,1e-05]
[1730603001446,41.29143363,2427.4,2427.3,1e-05]
[1730603001657,40.12459097,2427.4,2427.3,1e-05]
[1730603001955,27.05992867,2427.4,2427.3,1e-05]
[1730603002158,31.30192867,2427.4,2427.3,1e-05]
[1730603002405,27.04992867,2427.4,2427.3,1e-05]
[1730603002551,32.04992867,2427.4,2427.3,1e-05]
[1730603002749,27.03992867,2427.4,2427.3,1e-05]
[1730603002952,31.30192867,2427.4,2427.3,1e-05]
[1730603003849,31.31192867,2427.4,2427.3,1e-05]
[1730603004255,4.12099,2426.6,2426.4,0.080142]
[1730603004564,7.12099,2426.6,2426.4,0.080142]
[1730603004779,15.35259,2426.6,2426.4,0.080142]
[1730603004948,8.2316,2426.6,2426.4,0.080142]
[1730603005148,8.2316,2426.6,2426.5,9.95]
[1730603005350,15.35259,2426.6,2426.5,9.9]
[1730603005783,15.35259,2426.6,2426.5,7.83942]
[1730603005988,7.12116,2426.5,2426.4,0.080142]
[1730603006189,15.35276,2426.5,2426.4,0.080142]
[1730603006399,15.35276,2426.5,2426.1,0.13973411]
[1730603006400,8.01,2426.2,2426.1,0.13973411]
[1730603006551,11.65179867,2426.2,2426.1,0.13973411]
[1730603006765,24.00506867,2426.2,2426.1,0.13973411]
[1730603006964,11.2316,2426.2,2426.1,0.13973411]
[1730603007501,8.2316,2426.2,2426.1,0.13973411]
[1730603008874,8.2316,2426.2,2426.1,4.26157411]
[1730603009079,6.70355985,2426.2,2426.1,6.33013152]
[1730603009406,6.70355985,2426.2,2426.1,2.20829152]
[1730603009614,6.70355985,2426.2,2426.1,1.78213411]
[1730603010464,6.70355985,2426.2,2426.1,0.13973411]
[1730603010861,13.82522985,2426.2,2426.1,0.13973411]
[1730603011277,13.83522985,2426.2,2426.1,0.13973411]
[1730603011816,13.83522985,2426.2,2425.0,2.0583141]
[1730603011817,4.12327,2425.3,2425.0,2.0583141]
[1730603012104,0.01,2425.9,2425.0,2.27215971]
[1730603012105,4.12233,2425.9,2425.0,2.27215971]
[1730603012296,1.5289,2426.1,2425.0,2.27215971]
[1730603012297,4.12284,2425.6,2425.0,2.27215971]
[1730603012499,1.5289,2426.1,2425.0,2.0583141]
[1730603012705,4.12252,2425.7,2425.0,2.0583141]
[1730603012889,4.12227,2425.9,2425.0,2.0583141]
[1730603013097,4.12252,2425.7,2425.0,2.0583141]
[1730603013468,4.12229,2425.9,2425.0,2.0583141]
[1730603013792,6.70355985,2426.0,2425.4,4.12302]
[1730603013994,6.70355985,2426.0,2425.6,4.12267]
[1730603014193,6.70355985,2426.0,2425.5,1.6424]
[1730603014578,6.70355985,2426.0,2425.9,4.12218]
[1730603014773,6.70355985,2426.0,2425.9,5.76458]
[1730603015011,6.70355985,2426.0,2425.9,6.753271]
[1730603015521,6.70355985,2426.0,2425.5,0.01]
[1730603015522,6.70355985,2426.0,2425.3,4.1231]
[1730603015672,6.70355985,2426.0,2425.2,1.6063]
[1730603015673,4.12269,2425.6,2425.2,1.6063]
[1730603015878,4.12238,2425.8,2425.2,1.6063]
[1730603016077,3.64179867,2426.3,2425.3,4.12308]
[1730603016078,6.70355985,2425.7,2425.3,4.12308]
[1730603016312,6.70355985,2425.7,2425.2,1.6063]
[1730603017512,14.94878985,2425.7,2425.2,1.6063]
[1730603017672,6.70355985,2425.7,2425.2,1.6063]
[1730603017871,8.24559,2425.6,2425.0,2.0583141]
[1730603018202,6.70355985,2425.5,2425.0,2.43278971]
[1730603018333,6.70355985,2425.5,2425.0,2.0583141]
[1730603018836,6.70355985,2425.5,2425.1,0.02]
[1730603019069,6.70355985,2425.5,2425.4,5.74933]
[1730603019278,2.59297231,2425.5,2425.4,5.74933]
[1730603019644,2.59297231,2425.5,2425.4,8.74933]
[1730603019846,2.59297231,2425.5,2425.4,10.448908]
[1730603020355,4.12058,2426.9,2426.3,1.6063]
[1730603020771,4.1199,2427.3,2426.6,4.12086]
[1730603021092,1.6264,2427.7,2426.5,0.01]
[1730603021093,9.86491,2427.7,2426.5,0.01]
[1730603021371,4.11923,2427.7,2426.7,0.02]
[1730603021581,4.11885,2427.9,2426.7,0.02]
[1730603021895,4.11881,2427.9,2426.8,1.6063]
[1730603022207,4.11865,2428.0,2427.0,0.01]
[1730603022404,4.11856,2428.1,2427.0,0.01]
[1730603022405,4.11855,2428.1,2427.1,1.6063]
[1730603022544,0.54486404,2428.3,2427.1,1.6063]
[1730603022545,4.66308404,2428.3,2427.3,0.01]
[1730603022749,4.66308404,2428.3,2427.3,0.02]
[1730603022750,4.11828,2428.2,2427.3,0.02]
[1730603023059,4.11828,2428.2,2427.1,1.6063]
[1730603023060,4.11891,2427.9,2427.1,1.6163]
[1730603023266,8.2378,2427.9,2427.1,1.6163]
[1730603023459,4.11957,2427.5,2426.7,1.6063]
[1730603023662,0.54486404,2427.9,2426.7,1.6063]
[1730603023972,0.01,2428.1,2425.7,3.64179867]
[1730603023973,4.11806,2428.4,2427.4,1.6163]
[1730603024173,4.11812,2428.3,2427.4,1.6163]
[1730603024483,8.2377,2428.2,2427.4,1.6063]
[1730603024798,4.11913,2427.7,2427.4,1.6063]
[1730603024948,4.1196,2427.5,2427.0,1.6063]
[1730603025149,8.65179867,2428.4,2427.0,1.6063]
[1730603025150,8.2377,2427.6,2427.0,6.299215]
[1730603025349,8.2377,2427.4,2427.0,5.72654]
[1730603025787,12.35743,2427.4,2427.0,1.6063]
[1730603025995,8.2377,2427.4,2427.0,1.6063]
[1730603026149,12.35743,2427.4,2427.0,1.6063]
[1730603026784,4.11981,2427.3,2427.0,1.6063]
[1730603027083,8.2377,2427.2,2427.0,1.6063]
[1730603027254,8.2377,2427.2,2426.6,1.6063]
[1730603027458,8.2377,2427.2,2426.6,5.72728]
[1730603027459,12.35781,2427.2,2426.6,5.72728]
[1730603027669,12.35781,2427.2,2426.6,1.6063]
[1730603027876,12.35781,2427.2,2426.4,4.12132]
[1730603027877,8.2377,2427.2,2426.4,4.12132]
[1730603028097,4.12041,2427.0,2426.4,4.12132]
[1730603028257,8.2377,2427.2,2426.6,4.12083]
[1730603028258,8.2377,2426.9,2426.6,4.12083]
[1730603028461,8.2377,2426.9,2426.5,4.12114]
[1730603028659,8.2377,2426.9,2426.2,1.6263]
[1730603028660,8.2377,2426.9,2426.3,4.12147]
[1730603028874,8.2377,2426.9,2426.2,5.72789]
[1730603028875,4.12067,2426.8,2426.2,9.84946]
[1730603029197,8.2377,2426.7,2426.5,4.121]
[1730603029413,8.2377,2426.7,2426.6,4.12099]
[1730603029572,8.2377,2426.7,2426.6,5.68919]
[1730603029772,7.37832622,2426.7,2426.6,5.68919]
[1730603030432,5.85062197,2426.7,2426.6,5.68919]
[1730603030599,5.85062197,2426.7,2426.6,6.681209]
[1730603031272,5.85062197,2426.7,2426.6,6.671209]
[1730603031520,5.85062197,2426.7,2426.6,1.5682]
[1730603031815,5.85062197,2426.7,2426.6,5.68919]
[1730603032111,5.85062197,2426.7,2426.2,1.5682]
[1730603032310,4.12143,2426.4,2425.8,4.12226]
[1730603032510,5.85062197,2426.3,2425.8,4.12226]
[1730603032724,5.85062197,2426.3,2425.7,1.5682]
[1730603032725,4.12186,2426.1,2425.7,1.5682]
[1730603033017,9.97214197,2426.3,2425.7,1.5682]
[1730603033018,5.85062197,2426.0,2425.7,1.5682]
[1730603033204,5.85062197,2426.0,2425.7,6.259623]
[1730603033389,5.85062197,2426.0,2425.7,2.137273]
[1730603033732,5.85062197,2426.0,2425.4,1.5682]
[1730603033733,8.24447,2425.9,2425.4,1.5682]
[1730603033879,5.85062197,2425.8,2425.5,4.12275]
[1730603034083,5.85062197,2425.8,2425.4,1.5682]
[1730603034308,9.97307197,2425.8,2425.4,1.5682]
[1730603034611,4.12296,2425.5,2425.0,3.6265141]
[1730603034829,4.12331,2425.3,2425.0,3.6265141]
[1730603034994,4.12331,2425.3,2425.0,2.0583141]
[1730603034995,5.85062197,2425.2,2425.0,2.0583141]
[1730603035322,9.97405197,2425.2,2425.0,2.0583141]
[1730603035672,5.85062197,2425.2,2425.0,2.0583141]
[1730603035878,4.12354,2425.1,2425.0,2.0583141]
[1730603036080,9.97416197,2425.1,2425.0,2.0583141]
[1730603038547,5.85062197,2425.1,2425.0,2.0583141]
[1730603040204,9.97416197,2425.1,2425.0,2.0583141]
[1730603040661,5.85062197,2425.1,2425.0,2.0583141]
[1730603040843,5.85062197,2425.1,2425.0,0.3383141]
[1730603041628,5.85062197,2425.1,2425.0,5.56831277]
[1730603041629,3.78885197,2425.1,2425.0,5.56831277]
[1730603041827,1.6663,2426.5,2425.3,1.5682]
[1730603042134,1.6663,2426.5,2425.8,4.12224]
[1730603042338,1.6663,2426.5,2425.6,4.12262]
[1730603042540,8.24266,2426.4,2425.3,5.69126]
[1730603042738,4.12226,2425.9,2425.3,9.81436]
[1730603042925,4.12133,2426.4,2425.3,9.81436]
[1730603042926,8.24383,2426.1,2425.5,4.12281]
[1730603043182,4.12144,2426.4,2425.7,4.12251]
[1730603043451,1.6663,2426.5,2425.7,4.12251]
[1730603043452,4.12169,2426.2,2425.7,4.12251]
[1730603043611,4.1235,2425.2,2425.0,0.3383141]
[1730603043808,4.12354,2425.1,2425.0,0.3383141]
[1730603045115,4.12348,2425.2,2425.0,0.3383141]
[1730603045311,4.12346,2425.2,2425.0,0.3383141]
[1730603045518,4.12354,2425.1,2425.0,0.3383141]
[1730603045736,4.12346,2425.2,2425.0,0.3383141]
[1730603045955,4.12313,2425.4,2425.0,0.3383141]
[1730603046168,0.63915644,2425.9,2425.0,0.3383141]
[1730603046169,1.5202,2425.9,2425.0,0.3383141]
[1730603046319,4.12354,2425.1,2425.0,0.3383141]
[1730603046515,8.2459,2425.1,2425.0,0.3383141]
[1730603047137,12.36944,2425.1,2425.0,0.3383141]
[1730603047418,11.36944,2425.1,2425.0,0.3383141]
[1730603048617,14.36944,2425.1,2425.0,0.3383141]
[1730603049241,19.36944,2425.1,2425.0,0.3383141]
[1730603049958,14.36944,2425.1,2425.0,0.3383141]
[1730603050320,14.36944,2425.1,2425.0,0.18658984]
[1730603051224,11.36944,2425.1,2425.0,0.18658984]
[1730603051447,7.2459,2425.1,2425.0,0.18658984]
[1730603051650,7.2459,2425.1,2425.0,0.62564302]
[1730603051820,7.2459,2425.1,2425.0,0.18658984]
[1730603052032,11.36944,2425.1,2425.0,0.18658984]
[1730603052771,8.7661,2425.1,2425.0,0.18658984]
[1730603052975,20.88964,2425.1,2425.0,9.84e-06]
[1730603053134,20.89964,2425.1,2425.0,9.84e-06]
[1730603053781,15.88964,2425.1,2425.0,9.84e-06]
[1730603054737,20.89964,2425.1,2425.0,9.84e-06]
[1730603055051,20.88964,2425.1,2425.0,9.84e-06]
[1730603055252,20.89964,2425.1,2425.0,9.84e-06]
[1730603055848,15.88964,2425.1,2425.0,9.84e-06]
[1730603056032,7.2459,2425.1,2425.0,9.84e-06]
[1730603057484,7.2459,2425.1,2425.0,5.64671984]
[1730603057782,7.2459,2425.1,2425.0,6.23040602]
[1730603058142,1.6021,2426.6,2426.0,4.12196]
[1730603058143,4.12111,2426.6,2426.0,4.12196]
[1730603058347,9.67672132,2426.8,2426.0,4.12196]
[1730603058646,9.67672132,2426.8,2426.1,4.12184]
[1730603058647,4.12084,2426.7,2426.1,4.12184]
[1730603059091,4.12082,2426.7,2425.7,1.545]
[1730603059373,1.43527132,2426.8,2425.1,7.12345]
[1730603059374,1.6021,2426.3,2425.1,4.12345]
[1730603059582,8.24583,2425.5,2425.0,1.54500984]
[1730603059765,3.65179867,2426.5,2425.0,1.54500984]
[1730603059766,4.12338,2425.2,2425.0,2.12092002]
[1730603059937,4.12255,2425.7,2425.0,2.12092002]
[1730603059938,4.12315,2425.4,2425.0,1.54500984]
[1730603060136,8.245,2425.3,2425.0,1.54500984]
[1730603060546,4.12354,2425.1,2425.0,0.02707734]
[1730603061042,16.97064,2425.1,2425.0,0.02707734]
[1730603061478,13.97064,2425.1,2425.0,0.02707734]
[1730603061638,12.36854,2425.1,2425.0,0.02707734]
[1730603062345,15.36854,2425.1,2425.0,0.02707734]
[1730603062851,15.36854,2425.1,2425.0,7.34e-06]
[1730603063160,21.97064,2425.1,2425.0,7.34e-06]
[1730603063346,21.97064,2425.1,2424.1,10.01]
[1730603063347,1.6021,2424.8,2424.1,10.01]
[1730603063551,7.12507,2424.2,2424.1,10.01]
[1730603063945,8.72717,2424.2,2424.1,10.01]
[1730603064166,16.97217,2424.2,2424.1,10.01]
[1730603064387,16.97217,2424.2,2424.1,1.75952]
[1730603064675,4.12575,2423.8,2423.7,0.03539707]
[1730603064992,15.37075,2423.8,2423.7,0.03539707]
[1730603065282,15.37075,2423.8,2423.7,7.07e-06]
[1730603065495,15.36775,2423.8,2423.7,7.07e-06]
[1730603065785,16.97985,2423.8,2423.7,7.07e-06]
[1730603066281,8.245,2423.8,2423.7,7.07e-06]
[1730603066448,12.37075,2423.8,2423.7,7.07e-06]
[1730603066655,8.245,2423.8,2423.7,7.07e-06]
[1730603067192,8.245,2423.8,2423.7,5.68092707]
[1730603067355,4.12466,2424.5,2423.7,6.25827234]
[1730603067544,4.1245,2424.6,2423.9,4.12548]
[1730603068218,1.6021,2424.8,2423.7,6.25820234]
[1730603068219,4.12517,2424.2,2423.7,2.12235234]
[1730603068342,4.12575,2423.8,2423.7,7.07e-06]
[1730603070088,8.72785,2423.8,2423.7,7.07e-06]
[1730603071196,13.72785,2423.8,2423.7,7.07e-06]
[1730603071422,8.72785,2423.8,2423.7,7.07e-06]
[1730603072304,8.73785,2423.8,2423.7,7.07e-06]
[1730603072606,13.74785,2423.8,2423.7,7.07e-06]
[1730603073111,5.72785,2423.8,2423.7,7.07e-06]
[1730603073690,8.72785,2423.8,2423.7,7.07e-06]
[1730603074096,5.72785,2423.8,2423.7,7.07e-06]
[1730603074317,5.53248216,2424.3,2423.7,7.07e-06]
[1730603074318,4.12501,2424.3,2423.7,7.07e-06]
[1730603074474,4.12463,2424.5,2423.9,4.12546]
[1730603074673,4.12463,2424.5,2424.0,1.545]
[1730603075072,4.12474,2424.4,2424.0,1.545]
[1730603075274,4.12463,2424.5,2424.0,1.545]
[1730603075489,1.6021,2424.7,2424.0,1.545]
[1730603075490,4.12519,2424.2,2424.0,1.545]
[1730603075694,4.12524,2424.1,2423.7,1.54500707]
[1730603075913,4.12519,2424.2,2423.7,1.54500707]
[1730603076128,4.67404883,2424.3,2423.7,7.07e-06]
[1730603076325,0.49999196,2425.0,2423.8,5.68072]
[1730603076326,4.12371,2425.0,2423.8,5.68072]
[1730603076484,0.54914883,2425.2,2424.6,4.12437]
[1730603076485,4.12348,2425.2,2424.6,4.12437]
[1730603076813,1.6021,2425.7,2424.5,4.12445]
[1730603077022,1.6021,2425.7,2424.4,1.545]
[1730603077023,4.12393,2424.9,2424.4,5.6696]
[1730603077174,4.12375,2425.0,2424.5,4.12443]
[1730603077812,4.12361,2425.1,2424.5,4.12446]
[1730603078107,4.12361,2425.1,2424.4,1.545]
[1730603078108,4.12378,2425.0,2424.4,5.66964]
[1730603078373,4.12399,2424.9,2424.4,1.545]
[1730603078527,4.12441,2424.6,2424.1,1.545]
[1730603078681,1.6021,2425.2,2424.4,4.12472]
[1730603078881,4.12367,2425.1,2424.4,4.12472]
[1730603079084,4.12575,2423.8,2423.2,1.58]
[1730603079302,4.1249,2424.3,2423.2,1.58]
[1730603079303,4.1256,2423.9,2423.3,4.12659]
[1730603079529,4.1249,2424.3,2423.2,1.58]
[1730603079690,1.6021,2424.4,2423.5,4.1261]
[1730603079691,4.12524,2424.1,2423.5,4.1261]
[1730603079898,4.12407,2424.8,2424.0,4.12532]
[1730603079899,5.72618,2424.8,2424.0,4.12532]
[1730603080217,4.12354,2425.1,2424.1,0.412532]
[1730603080548,4.12271,2425.6,2424.5,4.13456]
[1730603080859,1.6021,2425.9,2424.5,4.13456]
[1730603080860,8.24495,2425.8,2425.2,5.66825]
[1730603081124,4.1218,2426.2,2425.7,1.545]
[1730603081328,12.77223867,2427.0,2425.7,1.545]
[1730603081329,8.24219,2426.6,2425.8,0.08243912]
[1730603081540,4.12035,2427.0,2426.2,4.1216]
[1730603081836,2.03192793,2427.2,2426.2,4.1216]
[1730603081837,4.54989793,2427.2,2426.6,4.12096]
[1730603081990,0.42982793,2427.2,2426.6,4.12088]
[1730603082184,4.12041,2427.0,2426.4,5.66623]
[1730603082422,4.12001,2427.2,2426.6,4.12089]
[1730603083086,0.46549888,2427.6,2426.4,5.66631]
[1730603083087,4.12017,2427.1,2426.4,5.66631]
[1730603083284,4.121,2426.6,2426.4,1.545]
[1730603083787,0.46549888,2427.0,2426.0,1.545]
[1730603083788,1.6021,2426.9,2426.0,1.545]
[1730603083988,4.12141,2426.4,2425.5,1.545]
[1730603084213,8.24217,2426.6,2425.6,0.08244911]
[1730603084414,4.12104,2426.6,2426.0,4.12196]
[1730603084590,0.412104,2426.5,2425.6,1.545]
[1730603084921,0.412104,2426.5,2425.8,4.12224]
[1730603084922,4.12133,2426.4,2425.8,4.12224]
[1730603085093,4.12133,2426.4,2425.7,8.24475]
[1730603085282,8.2426,2426.5,2425.8,4.12225]
[1730603085485,4.533421,2426.5,2425.8,4.12225]
[1730603085687,4.533421,2426.5,2425.7,4.12235]
[1730603085688,4.12133,2426.4,2425.7,4.12235]
[1730603085882,8.24279,2426.4,2425.7,4.12235]
[1730603086111,4.12153,2426.3,2425.7,4.12235]
[1730603086417,4.12151,2426.3,2425.7,4.12235]
[1730603086759,4.9870871,2426.3,2425.6,5.66759]
[1730603087041,4.12159,2426.3,2425.6,5.66759]
[1730603087258,4.12159,2426.3,2425.6,1.545]
[1730603087404,4.12169,2426.2,2425.6,1.545]
[1730603087608,4.12238,2425.8,2425.6,1.545]
[1730603087856,1.6021,2426.7,2425.6,1.545]
[1730603088147,4.12144,2426.4,2425.8,4.1223]
[1730603088355,4.12058,2426.9,2426.2,4.12167]
[1730603088526,4.12067,2426.8,2426.2,4.12167]
[1730603088727,4.12015,2427.1,2426.4,4.12119]
[1730603089051,4.11972,2427.4,2426.6,4.12097]
[1730603089259,4.11972,2427.4,2426.5,0.01]
[1730603089260,4.11937,2427.6,2426.8,4.12052]
[1730603089780,4.11973,2427.4,2426.6,4.12092]
[1730603089960,4.11973,2427.4,2426.8,4.12053]
[1730603089961,0.411973,2427.3,2426.8,4.12053]
[1730603090113,0.411973,2427.3,2426.6,0.01]
[1730603090114,4.11932,2427.6,2426.9,4.20277274]
[1730603090317,4.11906,2427.8,2427.1,4.12004]
[1730603090548,4.11964,2427.4,2426.9,4.12039]
[1730603090860,4.12,2427.2,2426.5,4.12099]
[1730603091017,1.98419888,2428.1,2426.6,4.12085]
[1730603091358,4.12058,2426.9,2426.3,1.6557]
[1730603091559,4.12065,2426.8,2426.3,1.6557]
[1730603091718,4.12113,2426.6,2426.3,1.6557]
[1730603091911,4.12085,2426.7,2426.3,1.6557]
[1730603092455,4.12112,2426.6,2426.3,1.6557]
[1730603092617,0.01,2427.5,2426.0,4.12191]
[1730603092618,4.1184,2428.2,2427.4,1.6557]
[1730603092817,4.1184,2428.2,2427.4,5.7753]
[1730603092818,4.11871,2428.0,2427.4,5.7753]
[1730603093021,4.11784,2428.5,2427.4,5.7753]
[1730603093022,4.11784,2428.5,2427.5,0.08237923]
[1730603093250,4.11784,2428.5,2427.8,1.6557]
[1730603093461,4.11794,2428.4,2427.8,1.6557]
[1730603093902,4.1858645,2428.6,2427.8,1.6557]
[1730603093903,0.0681945,2428.6,2428.2,4.11827]
[1730603094086,0.0681945,2428.6,2428.3,1.6557]
[1730603095185,0.0681945,2428.6,2427.6,0.01]
[1730603095186,0.89849895,2428.6,2427.9,1.6557]
[1730603095425,4.11827,2428.2,2427.9,1.6557]
[1730603095744,4.11827,2428.2,2427.4,4.11954]
[1730603095745,4.11873,2428.0,2427.5,1.6557]
[1730603096330,4.11929,2427.6,2427.1,1.6557]
[1730603096537,4.11912,2427.7,2427.1,5.77581]
[1730603096688,4.11907,2427.8,2427.1,5.77581]
[1730603097022,4.11923,2427.7,2427.1,1.6557]
[1730603097340,4.530977,2427.8,2427.1,5.77574]
[1730603097545,8.650027,2427.8,2427.1,5.85813336]
[1730603097835,4.1194,2427.6,2427.1,1.6557]
[1730603098036,8.23879,2427.6,2427.1,1.6557]
[1730603098244,4.11939,2427.6,2427.1,1.6557]
[1730603098443,4.9844247,2427.6,2427.1,1.6557]
[1730603098642,9.1038247,2427.6,2427.1,1.6557]
[1730603098937,4.530917,2427.8,2427.1,1.6557]
[1730603099142,4.1187,2428.0,2427.3,4.11977]
[1730603099505,4.11837,2428.2,2427.5,4.11946]
[1730603099506,4.11836,2428.2,2427.5,4.11946]
[1730603099734,4.11836,2428.2,2427.6,5.77493]
[1730603099906,4.11804,2428.4,2427.7,4.11909]
[1730603099907,4.11815,2428.3,2427.7,4.11909]
[1730603100104,4.11804,2428.4,2427.7,4.11909]
[1730603100303,1.5768945,2428.6,2428.0,4.11846]
[1730603100304,0.0681945,2428.6,2428.0,4.11846]
[1730603100511,0.0681945,2428.6,2427.7,0.66985534]
[1730603100512,0.0681945,2428.6,2428.2,1.6557]
[1730603100817,0.0681945,2428.6,2427.9,0.01]
[1730603100818,10.63458,2429.7,2427.9,0.01]
[1730603100819,4.54439494,2430.2,2429.7,4.11573]
[1730603101089,4.54439494,2430.2,2429.7,1.6657]
[1730603101090,0.42947494,2430.2,2429.7,1.6657]
[1730603101233,0.42947494,2430.2,2429.9,4.11539]
[1730603101751,0.42947494,2430.2,2430.1,0.01]
[1730603101974,0.42947494,2430.2,2430.1,8.81583556]
[1730603102245,4.1811345,2431.4,2430.7,4.11392]
[1730603102246,4.1811645,2431.4,2430.7,4.11392]
[1730603102460,0.0681945,2431.4,2430.8,0.08226722]
[1730603102667,0.0681945,2431.4,2431.3,4.11302]
[1730603102808,0.0681945,2431.4,2431.3,5.71152]
[1730603103153,0.0681945,2431.4,2431.3,6.7864591]
[1730603103307,0.0681945,2431.4,2431.3,5.79376426]
[1730603103504,0.0681945,2431.4,2431.3,1.5985]
[1730603103740,4.11126,2432.4,2431.3,1.68074789]
[1730603103953,0.0531714,2432.4,2431.4,0.02]
[1730603104121,4.11145,2432.3,2431.7,4.1123]
[1730603104333,0.82758214,2432.3,2431.7,4.1123]
[1730603104537,0.0531714,2432.4,2432.2,4.11144]
[1730603104740,0.0531714,2432.4,2432.3,4.11133]
[1730603104957,0.0531714,2432.4,2431.4,1.6429]
[1730603105154,8.22359,2432.1,2431.4,1.6429]
[1730603105383,0.49372077,2432.4,2431.4,1.6429]
[1730603105384,4.11201,2431.9,2431.4,1.6429]
[1730603105816,4.11241,2431.7,2431.0,1.6429]
[1730603106020,4.1652914,2431.9,2431.1,4.1132]
[1730603106619,4.1652914,2431.9,2431.0,5.75642]
[1730603106827,4.11311,2431.3,2431.0,1.6429]
[1730603107023,4.11239,2431.7,2430.5,1.6429]
[1730603107024,4.11388,2430.8,2430.5,1.6429]
[1730603107249,0.411311,2431.2,2430.0,1.6429]
[1730603107250,4.11438,2430.5,2430.0,1.6429]
[1730603107452,4.11386,2430.9,2430.1,8.22995]
[1730603107700,4.11386,2430.9,2430.2,0.08228576]
[1730603107837,0.411311,2431.2,2430.0,1.6529]
[1730603107838,4.11404,2430.7,2430.0,1.6429]
[1730603108017,4.11377,2430.9,2430.0,5.76809]
[1730603108223,4.524631,2431.2,2430.4,4.11444]
[1730603108605,4.524631,2431.2,2430.2,8.22953]
[1730603108606,4.11355,2431.0,2430.2,8.22953]
[1730603108720,4.11355,2431.0,2430.3,4.11465]
[1730603108923,4.524631,2431.2,2430.4,4.11443]
[1730603109123,4.11348,2431.1,2430.4,4.11443]
[1730603109355,4.11348,2431.1,2430.2,4.12482]
[1730603109356,4.11363,2431.0,2430.3,4.1147]
[1730603109561,4.11363,2431.0,2430.2,4.12482]
[1730603109562,4.11363,2431.0,2430.4,0.08227865]
[1730603109859,8.22728,2431.0,2430.3,0.08228364]
[1730603110026,0.411311,2431.2,2430.5,4.11437]
[1730603110027,4.524561,2431.2,2430.5,4.11437]
[1730603110220,4.11325,2431.2,2430.6,0.08227492]
[1730603110568,4.11325,2431.2,2430.7,1.6429]
[1730603111126,4.11325,2431.2,2430.1,0.01]
[1730603111127,4.11387,2430.8,2430.2,1.6429]
[1730603111339,4.11356,2431.0,2430.2,1.6429]
[1730603111340,4.11361,2431.0,2430.2,1.6429]
[1730603111533,4.11361,2431.0,2430.3,4.11456]
[1730603111969,4.11323,2431.2,2430.3,4.11456]
[1730603111970,4.11323,2431.2,2430.5,4.11425]
[1730603112196,4.11323,2431.2,2430.2,1.6429]
[1730603112197,0.0531714,2431.4,2430.6,0.09227426]
[1730603112438,0.0531714,2431.4,2430.2,1.6529]
[1730603112439,4.1661214,2431.4,2430.7,5.75694]
[1730603112613,4.1661214,2431.4,2430.8,0.08226852]
[1730603112614,0.0531714,2431.4,2430.8,0.08226852]
[1730603112824,0.0531714,2431.4,2430.9,4.11358]
[1730603113124,0.0531714,2431.4,2431.3,1.6429]
[1730603114430,0.0531714,2431.4,2431.3,5.85816296]
[1730603114722,0.0531714,2431.4,2431.3,5.77592]
[1730603114928,0.0531714,2431.4,2431.3,5.85815565]
[1730603115102,0.0531714,2431.4,2431.3,5.77592]
[1730603115298,4.11091,2432.6,2431.3,5.77592]
[1730603115299,4.11091,2432.6,2431.6,0.01]
[1730603115503,4.11091,2432.6,2432.0,1.6429]
[1730603115504,4.111,2432.5,2432.0,1.6429]
[1730603115720,4.11154,2432.2,2432.0,1.6429]
[1730603115881,4.11087,2432.6,2432.0,1.6429]
[1730603116223,4.11087,2432.6,2432.1,0.07830758]
[1730603116446,4.11087,2432.6,2432.0,1.6429]
[1730603116447,0.822142,2432.6,2432.0,1.6429]
[1730603116627,4.11168,2432.1,2431.6,1.6429]
[1730603116781,3.0778224,2433.0,2431.6,1.6429]
[1730603116782,4.11133,2432.3,2431.6,1.6429]
[1730603117030,4.11177,2432.1,2431.6,1.6429]
[1730603117322,4.11196,2432.0,2431.6,1.6429]
[1730603117799,4.11177,2432.1,2431.6,1.6429]
[1730603118010,4.11065,2432.8,2431.6,2.30168771]
[1730603118207,4.11099,2432.6,2431.9,5.75488]
[1730603118355,4.11096,2432.6,2431.9,9.86679]
[1730603118704,8.22189,2432.6,2431.9,9.86671]
[1730603118861,8.22189,2432.6,2431.9,5.7548]
[1730603119055,8.22189,2432.6,2431.9,9.86671]
[1730603119258,4.1113,2432.4,2431.9,1.6429]